Cogmind - Beta 13 @@@ ROGUE MODE // 2024.05.16 @ 21:13:47 Player: GFYguy Result: Self-destructed Performance ------------- Evolutions (1) 500 Regions Visited (2) 400 Robots Destroyed (16) 80 Value Destroyed (159) 159 Prototype IDs (0) 0 Alien Tech Used (0) 0 Bonus (0) 0 TOTAL SCORE: 1139 Bonus ------- None Cogmind --------- Core Integrity 269/400 Matter 261/300 Energy 100/100 System Corruption 4% Temperature Cool (0) Movement Core (200) Ox3 Location -9/Materials Parts ------- > --- POWER (1) -------- (None) > --- PROPULSION (3) --- (None) > --- UTILITY (3) ------ Medium Storage Unit > --- WEAPON (2) ------- Mace > --- INVENTORY (10) --- Large Storage Unit High-capacity Storage Unit Weight Redist. System ECM Suite Rocket Launcher Rocket Launcher Rocket Launcher Mace Mace Peak State ------------ > --- POWER ------------ Light Ion Engine > --- PROPULSION ------- Wheel Compact Wheel > --- UTILITY ---------- Medium Storage Unit Sensor Array ECM Suite > --- WEAPON ----------- Rocket Launcher Mace > --- INVENTORY -------- Large Storage Unit High-capacity Storage Unit Weight Redist. System Rocket Launcher Rocket Launcher Rocket Launcher Mace Mace Mace [Rating: 11] Favorites ----------- Power Light Ion Engine Engine Light Ion Engine Propulsion Wheel Wheel Wheel Utility ECM Suite Device ECM Suite Storage Small Storage Unit Weapon Mace Ballistic Gun Light Assault Rifle Launcher Rocket Launcher Impact Weapon Mace Build | -11 -10 -9 ------- Run | Yrd Mat Mat Slots Evolved 2 | . . 2 Power . | . . . Propulsion 1 | . . 1 Utility 1 | . . 1 Weapon . | . . . Parts Attached 15 | 6 7 2 Power 2 | 1 1 . Engine 2 | 1 1 . Core . | . . . Reactor . | . . . Propulsion 3 | 2 1 . Treads . | . . . Leg . | . . . Wheel 3 | 2 1 . Hover . | . . . Flight . | . . . Utility 4 | 1 2 1 Device 2 | . 1 1 Storage 2 | 1 1 . Processor . | . . . Hackware . | . . . Protection . | . . . Artifact . | . . . Weapon 6 | 2 3 1 Energy Gun . | . . . Energy Cannon . | . . . Ballistic Gun 2 | 2 . . Ballistic Cannon . | . . . Launcher 1 | . 1 . Special Weapon . | . . . Impact Weapon 3 | . 2 1 Slashing Weapon . | . . . Piercing Weapon . | . . . Special Melee Weapon . | . . . Unidentified Prototypes . | . . . Parts Lost 8 | . 1 7 Power 2 | . 1 1 Propulsion 2 | . . 2 Utility 2 | . . 2 Weapon 2 | . . 2 Highest Loss Streak 7 | . 1 7 To Critical Strikes . | . . . Average Slot Usage (%) 93 | . 97 81 Engine 13 | . 13 11 Wheel 25 | . 28 18 Device 13 | . 11 22 Storage 13 | . 14 11 Ballistic Gun 5 | . 6 . Launcher 5 | . 4 8 Impact Weapon 15 | . 17 11 Naked Turns . | . . . Heaviest Build 22 | 10 21 22 Greatest Support 26 | 20 26 26 Greatest Overweight (x) 1 | . 1 1 Average Overweight (x) . | . . . Largest Inventory Capacity 10 | 8 10 10 Average Capacity 8 | 6 8 10 Most Carried 10 | 5 10 10 Average Carried 6 | 1 6 9 Final Capacity 10 | 8 10 10 Final Carried 10 | . 10 9 Class Distribution -------------------- 100% | Mutant Dominant Class ---------------- Mutant | -10/Materials Mutant | -9/Materials Resources | -11 -10 -9 ----------- Run | Yrd Mat Mat Matter Collected 328 | 177 151 . Remotely . | . . . Salvage Created 461 | . 443 18 Parts 13 | . 11 2 Haulers Intercepted 2 | . 2 . Recyclers Shooed . | . . . Parts Field Recycled . | . . . Retrieved Matter . | . . . Parts Self-Destructed . | . . . Prevented . | . . . Kills | -11 -10 -9 ------- Run | Yrd Mat Mat Combat Hostiles Destroyed 4 | . 4 . Melee 3 | . 3 . Classes Destroyed 8 | . 7 1 Worker 2 | . 2 . Tunneler 1 | . . 1 Hauler 2 | . 2 . Recycler 3 | . 3 . Operator 2 | . 2 . Watcher 2 | . 1 1 Swarmer 3 | . 3 . Grunt 1 | . 1 . Best Kill Streak 6 | . 6 2 Combat Bots Only 4 | . 4 . Max Kills in Single Turn 1 | . 1 1 Gunslinging . | . . . Exploded . | . . . Melee 1 | . 1 . Uniques/NPCs Destroyed . | . . . Combat | -11 -10 -9 -------- Run | Yrd Mat Mat Hostile Shots Fired 76 | . 26 50 Missed 17 | . 4 13 Damage Taken 744 | . 183 561 Core 195 | . 64 131 Absorbed by Shields . | . . . Core Remaining (%) 87 | 100 74 . Volleys Fired 8 | . 5 3 Largest 2 | . 2 1 Hottest 40 | . 40 33 Shots Fired 12 | . 9 3 Gun 8 | . 8 . Cannon . | . . . Launcher 4 | . 1 3 Special . | . . . Kinetic 8 | . 8 . Thermal . | . . . Explosive 4 | . 1 3 Electromagnetic . | . . . Robot Hit Streak 3 | . 3 . Robot Miss Streak 5 | . 3 5 Penetration Max . | . . . Secondary Targets . | . . . Shots Hit Robots 36 | . 21 15 Core Hits 9 | . 5 4 Critical Kills . | . . . Critical Parts Destroyed 7 | . 7 . Critical Strikes 7 | . 7 . Destroy 1 | . 1 . Smash 6 | . 6 . Melee Attacks 46 | . 27 19 Impact 46 | . 27 19 Slashing . | . . . Piercing . | . . . Sneak Attacks 9 | . 9 . Combat Hostiles . | . . . Follow-up Attacks 4 | . 4 . Damage Inflicted 1422 | . 895 527 Guns 20 | . 20 . Cannons . | . . . Explosions 217 | . 48 169 Melee 1185 | . 827 358 Ramming . | . . . Kinetic 20 | . 20 . Thermal . | . . . Explosive 217 | . 48 169 Electromagnetic . | . . . Impact 1185 | . 827 358 Slashing . | . . . Piercing . | . . . Highest Corruption 1 | . . 1 Average Corruption 1 | . . 1 Corruption Purged . | . . . Corruption Blocked . | . . . Overload Shots . | . . . Overflow Damage 382 | . 353 29 Projectiles . | . . . Explosions 11 | . . 11 Melee 371 | . 353 18 Knockbacks 1 | . 1 . Impact 1 | . 1 . Kinetic . | . . . Secondary . | . . . Self-Inflicted Damage . | . . . Shots . | . . . Rammed . | . . . Targets Rammed . | . . . Kicked . | . . . Crushed . | . . . Highest Temperature 6 | . . 6 Average Temperature 5 | . . 5 Received Heat Transfer 225 | . 30 195 Siege Activations . | . . . Robots Corrupted . | . . . Combat Hostiles . | . . . Parts Fried 6 | . 6 . Impact Corruptions 13 | . 12 1 Robots Melted . | . . . Combat Hostiles . | . . . Parts Melted . | . . . Heat Transferred . | . . . Parts Sabotaged . | . . . Parts Stolen . | . . . Parts Stripped . | . . . Power Chain Reactions . | . . . Alert | -11 -10 -9 ------- Run | Yrd Mat Mat Peak Influence 211 | . 211 63 Initial 4 | . . 4 Average 68 | . 84 30 Maximum Alert Level 1 | . 1 . Low Security (%) 92 | 100 89 100 Level 1 7 | . 10 . Level 2 . | . . . Level 3 . | . . . Level 4 . | . . . Level 5 . | . . . High Security . | . . . Max Security . | . . . Squads Dispatched 1 | . 1 . Investigation . | . . . Extermination . | . . . Reinforcement 1 | . 1 . Assault . | . . . Garrison . | . . . Intercept . | . . . Searches Triggered . | . . . Construction Impeded . | . . . Haulers Reinforced . | . . . Active Scanning Responses . | . . . Cargo Convoy Interrupts . | . . . Stealth | -11 -10 -9 --------- Run | Yrd Mat Mat Distress Signals 1 | . . 1 Communications Jammed . | . . . Distress Signals . | . . . Times Spotted 11 | . 7 4 Peak Tracking Total 4 | . 4 3 Tactical Retreats 1 | . . 1 Traps | -11 -10 -9 ------- Run | Yrd Mat Mat Traps Triggered . | . . . Indirectly . | . . . Trap Hack Attempts . | . . . Triggered . | . . . Disarmed . | . . . Reprogrammed 4 | . . 4 Reused . | . . . Traps Extracted . | . . . Installed . | . . . Triggered . | . . . Machines | -11 -10 -9 ---------- Run | Yrd Mat Mat Machines Disabled . | . . . Max in Single Turn . | . . . Machines Repaired . | . . . Machines Dismantled . | . . . Machines Sabotaged . | . . . Overloaded Fab Kills . | . . . Hacking | -11 -10 -9 --------- Run | Yrd Mat Mat Machines Accessed 5 | . 4 1 Terminals 3 | . 2 1 Fabricators . | . . . Repair Stations 1 | . 1 . Recycling Units 1 | . 1 . Scanalyzers . | . . . Garrison Access . | . . . Total Hacks 10 | . 6 4 Successful 7 | . 4 3 Failed 3 | . 2 1 Catastrophic 1 | . 1 . Database Lockouts . | . . . Manual . | . . . Terminals 7 | . 3 4 Fabricators . | . . . Repair Stations 1 | . 1 . Recycling Units 2 | . 2 . Scanalyzers . | . . . Garrison Access . | . . . Terminal Hacks 5 | . 2 3 Locate Traps 1 | . . 1 Reprogram Traps 1 | . . 1 Recall Investigation 1 | . 1 . Hauler Manifests 1 | . 1 . Registered Components 1 | . . 1 Fabricator Hacks . | . . . Repair Station Hacks . | . . . Recycling Unit Hacks 2 | . 2 . Report Inventory 2 | . 2 . Scanalyzer . | . . . Garrison Access Hacks . | . . . Unauthorized Hacks . | . . . Terminals . | . . . Fabricators . | . . . Repair Stations . | . . . Recycling Units . | . . . Scanalyzers . | . . . Garrison Access . | . . . Data Cores Recovered 1 | . 1 . Used . | . . . Hacking Detections 5 | . 4 1 Full Trace Events . | . . . Feedback Events . | . . . Feedback Blocked . | . . . Robot Schematics Acquired . | . . . Robots Built . | . . . Authchips . | . . . Time . | . . . Total Robot Build Rating . | . . . Part Schematics Acquired . | . . . Parts Built . | . . . Authchips . | . . . Time . | . . . Total Part Build Rating . | . . . Parts Repaired . | . . . Time . | . . . Parts Recycled . | . . . Recycled Matter . | . . . Retrieved Matter . | . . . Retrieved Components . | . . . Parts Scanalyzed . | . . . Part Schematics Acquired . | . . . Parts Damaged . | . . . Bothacking | -11 -10 -9 ------------ Run | Yrd Mat Mat Used RIF Installer . | . . . Robots Hacked . | . . . Non-combat . | . . . Combat . | . . . Robot Hacks Applied . | . . . Relay Couplers Released . | . . . Fabnet Peak Effective % . | . . . Robots Rewired . | . . . Allies Hacked . | . . . Hacks Repelled . | . . . Allies | -11 -10 -9 -------- Run | Yrd Mat Mat Total Allies . | . . . Largest Group . | . . . Highest-Rated Group . | . . . Highest-Rated Ally . | . . . Total Orders . | . . . Ally Attacks . | . . . Total Damage . | . . . Kills . | . . . Allies Corrupted . | . . . Allies Melted . | . . . Intel | -11 -10 -9 ------- Run | Yrd Mat Mat Robot Analysis Total . | . . . Derelict Logs Recovered . | . . . Drone Launches . | . . . Drone Recoveries . | . . . Exploration | -11 -10 -9 ------------- Run | Yrd Mat Mat Turns Passed 598 | 35 439 124 Spaces Moved 496 | 36 399 61 Core 17 | 17 . . Treads . | . . . Legs . | . . . Wheels 479 | 19 399 61 Hover . | . . . Flight . | . . . Fastest Speed 50 | 50 80 90 Average Speed 83 | 65 84 90 Slowest Speed 115 | 80 95 115 Overloaded Moves . | . . . Propulsion Burnouts . | . . . Robots Hopped . | . . . Cave-ins Triggered . | . . . Exploration Rate (%) 24 | 3 60 11 Regions Visited 2 Branch Regions . Pre-discovered Areas . | . . . Known Exits Taken . | . . . Unknown Exits Taken 2 | 1 1 . Scrap Searched . | . . . Spaces Dug . | . . . Terrain Destroyed 40 | . 12 28 Melee . | . . . Projectile . | . . . AOE 40 | . 12 28 Terrain Rammed . | . . . Walls Destroyed . | . . . Machines Disabled . | . . . Actions | -11 -10 -9 --------- Run | Yrd Mat Mat Total 595 | 47 455 93 Wait 8 | . 1 7 Move 494 | 35 398 61 Hop . | . . . Pick Up 23 | 6 16 1 Fast Attach 1 | . 1 . Attach 10 | 6 2 2 Detach . | . . . Swap 4 | . 4 . Drop 6 | . 6 . Fire 8 | . 5 3 Melee 41 | . 22 19 Ram . | . . . Kick . | . . . Crush . | . . . Escape Stasis . | . . . Rewire . | . . . Trap . | . . . Miscellaneous . | . . . Route ------- -11/Scrapyard -10/Materials (discovered 2 exits: *Mat / [*Min]) -9/Materials History --------- Turn | Location | Event 4 | -11/Scrapyard | Discovered new exit (range 15) 36 | -11/Scrapyard | Entered Materials 247 | -10/Materials | Discovered new exit (range 8) 317 | -10/Materials | Build established: Mutant 466 | -10/Materials | Discovered new exit (range 7) 475 | -10/Materials | Entered another Materials area 475 | -9/Materials | Evolved 2 slots: Propulsion x1, Utility x1 599 | -9/Materials | Self-destructed Last Messages --------------- K-01 Serf collects debris. U-05 Engineer builds a Wall. K-01 Serf collects debris. U-05 Engineer builds a Wall. The unstable cave ceiling collapses. K-01 Serf collects debris. Com. Wheel destroyed. Critical hit (Burn: +37). ECM Suite destroyed. System corrupted by crushing effect (+1). U-05 Engineer builds a Wall. Lgt. Ion Engine destroyed. K-01 Serf collects debris. Y-45 Defender destroyed. R-06 Scavenger collects Wheel. U-05 Engineer lays Concrete. Sensor Array destroyed. U-05 Engineer lays Concrete. Mace destroyed. System corrupted by crushing effect (+3). Map ----- +----------------------------------------------------+ | | | | | | | | | | | | | | | ?????????????????????????????????????????????????? | | ???????????????????????????#####?????????????????? | | ??????????????????????????? ?????????????????? | | #???????????????????????? T ???????????????? | | #???????????????????????# #??????????????? | | #???????????????????????# #??????????????? | | #?????????????########### """ """ #??????????????? | | #?????????????# # """ """ #???????? #???? | | #?????????????# ""# """ """ ???????"" #???? | | #?????????????# T"#?? ?????? #???? | | #?????????????# ""#??##+####### ??? | | #?????????????# """ #??# """"??????? | | ############### """ #### """"??????? | | + """ + """"??????? | | ############### ### !????? | | ??????????????##### ### # ??? | | ????????????????# ### ########## #?? | | ????????????????# u #????????????? | | ?????????? + r b@%k +????????????? | | ????????????##### g%*%r ##????????????? | | ????????????????# r###= #?????????????? | | ????????????????# ## #### #?????????????? | | ????????????????## ## ### ##??? #?????????????? | | ?????????????????# ?########???? #?????????????? | | ?????????????????# ?????????????^^ ?????????????? | | ?????????????????# ??????????????? ?????????????? | | ????????????????? ???????????????? ^^????????????? | | ???????????????? ????????????????? ?????????????? | | ?????????????????????????????????????????????????? | | ?????????????????????????????????????????????????? | | ????????????????????????!????????????????????????? | | ?????????????????????????????????????????????????? | | ?????????????????????????????????????????????????? | | ?????????????????????????????????????????????????? | | ?????????????????????????????????????????????????? | | ?????????????????????????????????????????????????? | | ?????????????????????????????????????????????????? | | ?????????????????????????????????????????????????? | | ?????????????????????????????????????????????????? | | ?????????????????????????????????????????????????? | | ?????????????????????????????????????????????????? | | ?????????????????????????????????????????????????? | | ?????????????????????????????????????????????????? | +----------------------------------------------------+ Best States ------------- Heat Dissipation 28 Energy Generation 10 Energy Capacity 125 Matter Stores 300 Matter Capacity 300 Sight Range 16 Robot Scan Range 14 Terrain Scan Density 10 ECM Strength 1 Evasion (%) 50 Item Schematics ----------------- None Robot Schematics ------------------ None Fabricated ------------ Nothing Alien Tech Used ----------------- None Achievements -------------- None Challenges ------------ None Game ------ Seed NovaTachyonAutocannon Manual? 0 Play Time 00:08:42 Cumulative 14.8 hours Start 2024.05.16 @ 20:57:48 End 2024.05.16 @ 21:13:47 Sessions 3 Manual Loads 0 Difficulty Rogue Special Mode None Game No. 22 Rogue 22 Adventurer 0 Explorer 0 Win Type - Total 0 Types 0/0/0/0/0/0/0/0/0 Lore% 13 Gallery% 20 Achievement% 18 Wizard Run 0 Options --------- Layout 1 ASCII 0 Keyboard 0 Movement Mouse Keybinds 0 Fullscreen 2 Font 24/Smallcaps Map View 50x35 Zoom Use 0% Tactical HUD 0 Map Filters NONE Filters NONE Steam 1 RUN: 314107aa-2e9f-4ed5-a2ea-e4380c7cdba7